fUSD/lending_fUSD_20260509
["ID","MTS","AMOUNT","RATE_DAILY","PERIOD"]
[421887171,1778291434000,-1000.0,0.00014999,2]
[421887221,1778291434000,-500.0,0.00014999,2]
[421887199,1778291434000,-500.0,0.00014999,2]
[421887205,1778291434000,-500.0,0.00014999,2]
[421887212,1778291434000,-500.0,0.00014999,2]
[421887203,1778291434000,-500.0,0.00014999,2]
[421887173,1778291434000,-1000.0,0.00014999,2]
[421887175,1778291434000,-1000.0,0.00014999,2]
[421887204,1778291434000,-500.0,0.00014999,2]
[421887176,1778291434000,-1000.0,0.00014999,2]
[421887177,1778291434000,-1000.0,0.00014999,2]
[421887181,1778291434000,-1000.0,0.00014999,2]
[421887182,1778291434000,-1000.0,0.00014999,2]
[421887192,1778291434000,-347.60802052,0.00014999,2]
[421887180,1778291434000,-1000.0,0.00014999,2]
[421887185,1778291434000,-1000.0,0.00014999,2]
[421887186,1778291434000,-1000.0,0.00014999,2]
[421887191,1778291434000,-500.0,0.00014999,2]
[421887189,1778291434000,-825.85498927,0.00014999,2]
[421887190,1778291434000,-500.0,0.00014999,2]
[421887183,1778291434000,-1000.0,0.00014999,2]
[421887187,1778291434000,-1000.0,0.00014999,2]
[421887188,1778291434000,-1000.0,0.00014999,2]
[421887184,1778291434000,-1000.0,0.00014999,2]
[421887193,1778291434000,-500.0,0.00014999,2]
[421887194,1778291434000,-500.0,0.00014999,2]
[421887198,1778291434000,-500.0,0.00014999,2]
[421887202,1778291434000,-500.0,0.00014999,2]
[421887200,1778291434000,-500.0,0.00014999,2]
[421887268,1778291435000,-500.0,0.00014999,2]
[421887266,1778291435000,-500.0,0.00014999,2]
[421887277,1778291435000,-500.0,0.00014999,2]
[421887265,1778291435000,-500.0,0.00014999,2]
[421887261,1778291435000,-500.0,0.00014999,2]
[421887262,1778291435000,-500.0,0.00014999,2]
[421887260,1778291435000,-500.0,0.00014999,2]
[421887259,1778291435000,-500.0,0.00014999,2]
[421887263,1778291435000,-500.0,0.00014999,2]
[421887258,1778291435000,-500.0,0.00014999,2]
[421887270,1778291435000,-500.0,0.00014999,2]
[421887264,1778291435000,-500.0,0.00014999,2]
[421887269,1778291435000,-500.0,0.00014999,2]
[421887280,1778291435000,-500.0,0.00014999,2]
[421887276,1778291435000,-500.0,0.00014999,2]
[421887274,1778291435000,-500.0,0.00014999,2]
[421887273,1778291435000,-500.0,0.00014999,2]
[421887272,1778291435000,-500.0,0.00014999,2]
[421887271,1778291435000,-500.0,0.00014999,2]
[421887287,1778291435000,-500.0,0.00014999,2]
[421887288,1778291435000,-500.0,0.00014999,2]
[421887289,1778291435000,-500.0,0.00014999,2]
[421887279,1778291435000,-500.0,0.00014999,2]
[421887278,1778291435000,-500.0,0.00014999,2]
[421887282,1778291435000,-500.0,0.00014999,2]
[421887281,1778291435000,-500.0,0.00014999,2]
[421887257,1778291435000,-500.0,0.00014999,2]
[421887275,1778291435000,-503.29783827,0.00014999,2]
[421887256,1778291435000,-500.0,0.00014999,2]
[421887231,1778291435000,-500.0,0.00014999,2]
[421887255,1778291435000,-500.0,0.00014999,2]
[421887286,1778291435000,-508.94214412,0.00014999,2]
[421887228,1778291435000,-500.0,0.00014999,2]
[421887226,1778291435000,-500.0,0.00014999,2]
[421887227,1778291435000,-500.0,0.00014999,2]
[421887225,1778291435000,-500.0,0.00014999,2]
[421887236,1778291435000,-513.55307719,0.00014999,2]
[421887237,1778291435000,-500.0,0.00014999,2]
[421887232,1778291435000,-500.0,0.00014999,2]
[421887240,1778291435000,-500.0,0.00014999,2]
[421887229,1778291435000,-500.0,0.00014999,2]
[421887233,1778291435000,-523.85211251,0.00014999,2]
[421887230,1778291435000,-500.0,0.00014999,2]
[421887239,1778291435000,-500.0,0.00014999,2]
[421887234,1778291435000,-500.0,0.00014999,2]
[421887238,1778291435000,-500.0,0.00014999,2]
[421887235,1778291435000,-500.0,0.00014999,2]
[421887241,1778291435000,-500.0,0.00014999,2]
[421887250,1778291435000,-500.0,0.00014999,2]
[421887253,1778291435000,-500.0,0.00014999,2]
[421887243,1778291435000,-514.28214689,0.00014999,2]
[421887251,1778291435000,-500.0,0.00014999,2]
[421887244,1778291435000,-500.0,0.00014999,2]
[421887252,1778291435000,-500.0,0.00014999,2]
[421887242,1778291435000,-500.0,0.00014999,2]
[421887245,1778291435000,-509.12824603,0.00014999,2]
[421887247,1778291435000,-500.0,0.00014999,2]
[421887248,1778291435000,-500.0,0.00014999,2]
[421887249,1778291435000,-500.0,0.00014999,2]
[421887246,1778291435000,-500.0,0.00014999,2]
[421887254,1778291435000,-500.0,0.00014999,2]
[421887283,1778291435000,-500.0,0.00014999,2]
[421887267,1778291435000,-500.0,0.00014999,2]
[421887284,1778291435000,-500.0,0.00014999,2]
[421887326,1778291435000,-500.0,0.00014999,2]
[421887322,1778291435000,-500.0,0.00014999,2]
[421887320,1778291435000,-500.0,0.00014999,2]
[421887318,1778291435000,-500.0,0.00014999,2]
[421887319,1778291435000,-500.0,0.00014999,2]
[421887321,1778291435000,-500.0,0.00014999,2]
[421887330,1778291435000,-500.0,0.00014999,2]
[421887333,1778291435000,-500.0,0.00014999,2]
[421887334,1778291435000,-500.0,0.00014999,2]
[421887332,1778291435000,-500.0,0.00014999,2]
[421887335,1778291435000,-500.0,0.00014999,2]
[421887341,1778291435000,-500.0,0.00014999,2]
[421887331,1778291435000,-500.0,0.00014999,2]
[421887329,1778291435000,-500.0,0.00014999,2]
[421887336,1778291435000,-500.0,0.00014999,2]
[421887340,1778291435000,-500.0,0.00014999,2]
[421887342,1778291435000,-500.0,0.00014999,2]
[421887337,1778291435000,-500.0,0.00014999,2]
[421887339,1778291435000,-500.0,0.00014999,2]
[421887344,1778291435000,-500.0,0.00014999,2]
[421887343,1778291435000,-500.0,0.00014999,2]
[421887345,1778291435000,-500.0,0.00014999,2]
[421887347,1778291435000,-500.0,0.00014999,2]
[421887349,1778291435000,-500.0,0.00014999,2]
[421887348,1778291435000,-500.0,0.00014999,2]
[421887350,1778291435000,-500.0,0.00014999,2]
[421887346,1778291435000,-500.0,0.00014999,2]
[421887285,1778291435000,-500.0,0.00014999,2]
[421887338,1778291435000,-500.0,0.00014999,2]
[421887328,1778291435000,-500.0,0.00014999,2]
[421887323,1778291435000,-500.0,0.00014999,2]
[421887325,1778291435000,-500.0,0.00014999,2]
[421887290,1778291435000,-500.0,0.00014999,2]
[421887291,1778291435000,-500.0,0.00014999,2]
[421887292,1778291435000,-500.0,0.00014999,2]
[421887294,1778291435000,-500.0,0.00014999,2]
[421887299,1778291435000,-500.0,0.00014999,2]
[421887293,1778291435000,-500.0,0.00014999,2]
[421887327,1778291435000,-500.0,0.00014999,2]
[421887296,1778291435000,-500.0,0.00014999,2]
[421887295,1778291435000,-500.0,0.00014999,2]
[421887298,1778291435000,-500.0,0.00014999,2]
[421887301,1778291435000,-500.0,0.00014999,2]
[421887300,1778291435000,-500.0,0.00014999,2]
[421887302,1778291435000,-500.0,0.00014999,2]
[421887303,1778291435000,-500.0,0.00014999,2]
[421887305,1778291435000,-500.0,0.00014999,2]
[421887297,1778291435000,-605.4179797,0.00014999,2]
[421887304,1778291435000,-500.0,0.00014999,2]
[421887307,1778291435000,-500.0,0.00014999,2]
[421887317,1778291435000,-151.0,0.00014999,2]
[421887316,1778291435000,-537.71298597,0.00014999,2]
[421887312,1778291435000,-500.0,0.00014999,2]
[421887309,1778291435000,-500.0,0.00014999,2]
[421887311,1778291435000,-500.0,0.00014999,2]
[421887324,1778291435000,-500.0,0.00014999,2]
[421887314,1778291435000,-500.0,0.00014999,2]
[421887315,1778291435000,-500.0,0.00014999,2]
[421887310,1778291435000,-500.0,0.00014999,2]
[421887308,1778291435000,-500.0,0.00014999,2]
[421887306,1778291435000,-500.0,0.00014999,2]
[421887313,1778291435000,-500.0,0.00014999,2]
[421887360,1778291436000,-500.0,0.00014999,2]
[421887357,1778291436000,-151.0,0.00014999,2]
[421887359,1778291436000,-151.0,0.00014999,2]
[421887358,1778291436000,-151.0,0.00014999,2]
[421887361,1778291436000,-500.0,0.00014999,2]
[421887367,1778291436000,-500.0,0.00014999,2]
[421887368,1778291436000,-500.0,0.00014999,2]
[421887366,1778291436000,-500.0,0.00014999,2]
[421887356,1778291436000,-151.0,0.00014999,2]
[421887363,1778291436000,-500.0,0.00014999,2]
[421887364,1778291436000,-500.0,0.00014999,2]
[421887351,1778291436000,-500.0,0.00014999,2]
[421887355,1778291436000,-151.0,0.00014999,2]
[421887353,1778291436000,-500.0,0.00014999,2]
[421887354,1778291436000,-151.0,0.00014999,2]
[421887352,1778291436000,-500.0,0.00014999,2]
[421887365,1778291436000,-500.0,0.00014999,2]
[421887362,1778291436000,-500.0,0.00014999,2]
[421887388,1778291436000,-2421.15165844,0.00015,2]
[421887379,1778291436000,-500.0,0.00014999,2]
[421887385,1778291436000,-500.0,0.00014999,2]
[421887387,1778291436000,-709514.67550556,0.00015,2]
[421887384,1778291436000,-500.0,0.00014999,2]
[421887386,1778291436000,-270.9288421,0.00014999,2]
[421887383,1778291436000,-500.0,0.00014999,2]
[421887382,1778291436000,-500.0,0.00014999,2]
[421887374,1778291436000,-500.0,0.00014999,2]
[421887377,1778291436000,-174.4300583,0.00014999,2]
[421887375,1778291436000,-509.81717575,0.00014999,2]
[421887376,1778291436000,-298.211268,0.00014999,2]
[421887373,1778291436000,-151.0,0.00014999,2]
[421887371,1778291436000,-151.0,0.00014999,2]
[421887372,1778291436000,-151.0,0.00014999,2]
[421887369,1778291436000,-191.02515746,0.00014999,2]
[421887381,1778291436000,-500.0,0.00014999,2]
[421887380,1778291436000,-500.0,0.00014999,2]
[421887378,1778291436000,-500.0,0.00014999,2]
[421887370,1778291436000,-151.0,0.00014999,2]
[421887390,1778291437000,-283288.69190082,0.00015,2]
[421887393,1778291438000,-1200.77618334,0.00015,2]
[421887391,1778291438000,-301.76454383,0.00015,2]
[421887392,1778291438000,-796.73566566,0.00015,2]
[421887394,1778291438000,-39132.88238231,0.00015,2]
[421887397,1778291438000,-380.52932165,0.00015,2]
[421887395,1778291438000,-1496.13372,0.00015,2]
[421887398,1778291438000,-8061.9066416,0.00015,2]
[421887396,1778291438000,-26966.34828253,0.00015,2]
[421887558,1778291440000,-500.37,0.00015,2]
[421887587,1778291446000,-17052.02399392,0.00015,2]
[421887586,1778291446000,-3146.90053657,0.000149,2]
[421887588,1778291446000,-327.8829728,0.00015,2]
[421887585,1778291446000,-2900.09946343,0.000149,2]
[421887584,1778291446000,-1182.89353657,0.000147,2]
[421887600,1778291680000,549.53043627,0.00028362,120]
[421887601,1778291711000,157.00869608,0.00028362,120]
[421887602,1778291712000,235.51304411,0.00028362,120]
[421887603,1778292084000,720.2159,0.0003013,120]
[421887605,1778292321000,179.94457725,0.0003,120]
[421887606,1778292420000,500.0,0.000119,4]
[421887607,1778292424000,722.8981165,0.00030137,120]
[421887608,1778292432000,7667.76242117,0.00030137,120]
[421887609,1778292451000,940.55181503,0.00030137,120]
[421887610,1778292493000,3018.38553719,0.00030137,120]
[421887615,1778292631000,-300.0,0.00011998,2]
[421887617,1778292631000,-250.0,0.00011999,2]
[421887618,1778292631000,-150.0,0.00011999,2]
[421887619,1778292631000,-150.0,0.00011999,2]
[421887620,1778292631000,-500.0,0.00011999,2]
[421887622,1778292631000,-500.0,0.00011999,2]
[421887616,1778292631000,-1200.0,0.00011998,2]
[421887623,1778292631000,-500.0,0.00011999,2]
[421887624,1778292631000,-500.0,0.00011999,2]
[421887621,1778292631000,-441.7037323,0.00011999,2]
[421887639,1778292632000,-500.0,0.00011999,2]
[421887643,1778292632000,-500.0,0.00011999,2]
[421887644,1778292632000,-500.0,0.00011999,2]
[421887649,1778292632000,-500.0,0.00011999,2]
[421887645,1778292632000,-500.0,0.00011999,2]
[421887656,1778292632000,-253.34226531,0.00011999,2]
[421887655,1778292632000,-500.0,0.00011999,2]
[421887642,1778292632000,-500.0,0.00011999,2]
[421887654,1778292632000,-500.0,0.00011999,2]
[421887646,1778292632000,-500.0,0.00011999,2]
[421887651,1778292632000,-500.0,0.00011999,2]
[421887647,1778292632000,-500.0,0.00011999,2]
[421887641,1778292632000,-500.0,0.00011999,2]
[421887637,1778292632000,-500.0,0.00011999,2]
[421887638,1778292632000,-500.0,0.00011999,2]
[421887653,1778292632000,-500.0,0.00011999,2]
[421887636,1778292632000,-500.0,0.00011999,2]
[421887634,1778292632000,-500.0,0.00011999,2]
[421887635,1778292632000,-500.0,0.00011999,2]
[421887633,1778292632000,-500.0,0.00011999,2]
[421887631,1778292632000,-500.0,0.00011999,2]
[421887628,1778292632000,-500.0,0.00011999,2]
[421887630,1778292632000,-500.0,0.00011999,2]
[421887629,1778292632000,-500.0,0.00011999,2]
[421887626,1778292632000,-500.0,0.00011999,2]
[421887625,1778292632000,-500.0,0.00011999,2]
[421887627,1778292632000,-500.0,0.00011999,2]
[421887640,1778292632000,-296.69208072,0.00011999,2]
[421887648,1778292632000,-500.0,0.00011999,2]
[421887632,1778292632000,-500.0,0.00011999,2]
[421887652,1778292632000,-500.0,0.00011999,2]
[421887720,1778292632000,-1096.91215874,0.00012,2]
[421887716,1778292632000,-378.50748251,0.00012,2]
[421887706,1778292632000,-706.95471448,0.00012,2]
[421887709,1778292632000,-8030.4,0.00012,2]
[421887713,1778292632000,-1143.39291566,0.00012,2]
[421887701,1778292632000,-1283.59230351,0.00012,2]
[421887650,1778292632000,-500.0,0.00011999,2]
[421887693,1778292632000,-111466.95226634,0.00012,2]
[421887687,1778292632000,-573.93159999,0.00011999,2]
[421887685,1778292632000,-500.0,0.00011999,2]
[421887690,1778292632000,-318.82048783,0.00011999,2]
[421887683,1778292632000,-500.0,0.00011999,2]
[421887679,1778292632000,-500.0,0.00011999,2]
[421887681,1778292632000,-395.50014315,0.00011999,2]
[421887698,1778292632000,-5273.8995713,0.00012,2]
[421887675,1778292632000,-500.0,0.00011999,2]
[421887673,1778292632000,-500.0,0.00011999,2]
[421887671,1778292632000,-500.0,0.00011999,2]
[421887670,1778292632000,-500.0,0.00011999,2]
[421887668,1778292632000,-500.0,0.00011999,2]
[421887666,1778292632000,-500.0,0.00011999,2]
[421887665,1778292632000,-500.0,0.00011999,2]
[421887662,1778292632000,-500.0,0.00011999,2]
[421887663,1778292632000,-500.0,0.00011999,2]
[421887660,1778292632000,-500.0,0.00011999,2]
[421887661,1778292632000,-500.0,0.00011999,2]
[421887658,1778292632000,-500.0,0.00011999,2]
[421887659,1778292632000,-229.66920807,0.00011999,2]
[421887657,1778292632000,-500.0,0.00011999,2]
[421887677,1778292632000,-500.0,0.00011999,2]
[421887733,1778292637000,10000.0,0.00030137,120]
[421887739,1778292638000,-1287.1,0.00012,2]
[421887748,1778292640000,-883.15138334,0.00012,2]
[421887746,1778292640000,-459.89,0.00012,2]
[421887747,1778292640000,-12427.73671123,0.00012,2]
[421887745,1778292640000,-1219.17117707,0.00012,2]
[421887744,1778292640000,-542.688,0.00012,2]
[421887743,1778292640000,-309.71872188,0.00012,2]
[421887742,1778292640000,-422.89223244,0.00012,2]
[421887749,1778292640000,-492.65507974,0.00012,2]
[421887755,1778292641000,-27020.21689527,0.00012,2]
[421887756,1778292641000,-380.52932165,0.00012,2]
[421887752,1778292641000,-76461.50095175,0.00012,2]
[421887754,1778292641000,-717.52512173,0.00012,2]
[421887753,1778292641000,-968.72631139,0.00012,2]
[421887818,1778292643000,-294326.09966578,0.00012,2]
[421887816,1778292643000,-1759.64412455,0.00012,2]
[421887817,1778292643000,-987.61314542,0.00012,2]
[421887824,1778292646000,-476.89400404,0.00012,2]
[421887823,1778292646000,-347.46,0.00012,2]
[421887830,1778292661000,4450.0,0.00022,30]
[421887831,1778292823000,172.74,0.0002963,120]
[421887832,1778292912000,329.71826177,0.00029007,120]
[421887833,1778292915000,247.28869633,0.00029007,120]
[421887834,1778292943000,196.26087009,0.00029007,120]
[421887835,1778292957000,161.1392762,0.0003013,120]
[421887837,1778292995000,24408.2755269,0.00011955,4]
[421887836,1778292995000,4939.0,0.00011955,4]
[421887838,1778293619000,-206.90178238,0.0001176,2]
[421887856,1778293832000,-500.0,0.00011999,2]
[421887862,1778293832000,-500.0,0.00011999,2]
[421887861,1778293832000,-509.19261261,0.00011999,2]
[421887860,1778293832000,-500.0,0.00011999,2]
[421887859,1778293832000,-223.17434148,0.00011999,2]
[421887884,1778293832000,-500.0,0.00011999,2]
[421887864,1778293832000,-500.0,0.00011999,2]
[421887869,1778293832000,-500.0,0.00011999,2]
[421887867,1778293832000,-500.0,0.00011999,2]
[421887873,1778293832000,-337.35396895,0.00011999,2]
[421887858,1778293832000,-501.41928919,0.00011999,2]
[421887880,1778293832000,-500.0,0.00011999,2]
[421887871,1778293832000,-500.0,0.00011999,2]
[421887857,1778293832000,-188.91881496,0.00011999,2]
[421887847,1778293832000,-254.646,0.0001176,2]
[421887852,1778293832000,-150.0,0.00011899,2]
[421887853,1778293832000,-4878.69166228,0.000119,2]
[421887854,1778293832000,-500.0,0.00011999,2]
[421887851,1778293832000,-196.0,0.00011899,2]
[421887845,1778293832000,-196.0,0.00011675,2]
[421887846,1778293832000,-1937.97021762,0.0001176,2]
[421887841,1778293832000,-1616.04,0.00011227,2]
[421887850,1778293832000,-1200.0,0.00011898,2]
[421887844,1778293832000,-196.0,0.00011562,2]
[421887849,1778293832000,-250.0,0.0001183,2]
[421887874,1778293832000,-500.0,0.00011999,2]
[421887848,1778293832000,-196.0,0.00011787,2]
[421887843,1778293832000,-196.0,0.0001145,2]
[421887842,1778293832000,-196.0,0.00011338,2]
[421887855,1778293832000,-476.85010021,0.00011999,2]
[421887878,1778293832000,-500.0,0.00011999,2]
[421887915,1778293832000,-500.0,0.00011999,2]
[421887882,1778293832000,-500.0,0.00011999,2]
[421887876,1778293832000,-500.0,0.00011999,2]
[421887925,1778293832000,-823.641,0.00012,2]
[421887921,1778293832000,-140967.34018862,0.00012,2]
[421887922,1778293832000,-174991.37252111,0.00012,2]
[421887924,1778293832000,-52934.90859852,0.00012,2]
[421887914,1778293832000,-500.0,0.00011999,2]
[421887918,1778293832000,-500.0,0.00011999,2]
[421887913,1778293832000,-632.35128076,0.00011999,2]
[421887919,1778293832000,-500.0,0.00011999,2]
[421887916,1778293832000,-500.0,0.00011999,2]
[421887917,1778293832000,-500.0,0.00011999,2]
[421887920,1778293832000,-500.0,0.00011999,2]
[421887912,1778293832000,-500.0,0.00011999,2]
[421887911,1778293832000,-500.0,0.00011999,2]
[421887923,1778293832000,-74565.04108988,0.00012,2]
[421887909,1778293832000,-500.0,0.00011999,2]
[421887910,1778293832000,-500.0,0.00011999,2]
[421887887,1778293832000,-500.0,0.00011999,2]
[421887889,1778293832000,-500.0,0.00011999,2]
[421887891,1778293832000,-177.33958572,0.00011999,2]
[421887904,1778293832000,-500.0,0.00011999,2]
[421887906,1778293832000,-500.0,0.00011999,2]
[421887885,1778293832000,-500.0,0.00011999,2]
[421887908,1778293832000,-500.0,0.00011999,2]
[421887893,1778293832000,-500.0,0.00011999,2]
[421887902,1778293832000,-500.0,0.00011999,2]
[421887883,1778293832000,-500.0,0.00011999,2]
[421887898,1778293832000,-500.0,0.00011999,2]
[421887900,1778293832000,-500.0,0.00011999,2]
[421887896,1778293832000,-500.0,0.00011999,2]
[421887926,1778293833000,152.0,0.00013388,7]
[421887927,1778293835000,333.0,0.00029452,120]
[421887929,1778293838000,-338.1956887,0.00012,2]
[421887935,1778293838000,-1466.25518156,0.00012,2]
[421887936,1778293838000,-545.85460464,0.00012,2]
[421887934,1778293838000,-380.52932165,0.00012,2]
[421887933,1778293838000,-11960.50701552,0.00012,2]
[421887931,1778293838000,-12937.41473515,0.00012,2]
[421887932,1778293838000,-2203.8946744,0.00012,2]
[421887930,1778293838000,-4730.75089867,0.00012,2]
[421887937,1778293838000,-554.34764771,0.00012,2]
[421888133,1778293840000,-1756.26465542,0.00012,2]
[421888209,1778293840000,-12592.7002675,0.00012,2]
[421888135,1778293840000,-2935.0,0.00012,2]
[421888505,1778293843000,-2507.26952149,0.00012349,2]
[421888509,1778293843000,-32071.46104354,0.00012732,2]
[421888508,1778293843000,-166.31,0.00012648,2]
[421888507,1778293843000,-161.03,0.00012441,2]
[421888499,1778293843000,-243.58664188,0.00012321,2]
[421888504,1778293843000,-262.80426691,0.00012349,2]
[421888503,1778293843000,-206.41072738,0.00012349,2]
[421888502,1778293843000,-250.0,0.00012349,2]
[421888500,1778293843000,-307.1,0.00012344,2]
[421888498,1778293843000,-681.76212011,0.00012321,2]
[421888496,1778293843000,-328.90700314,0.00012274,2]
[421888497,1778293843000,-1074.65123801,0.00012321,2]
[421888495,1778293843000,-171.09299686,0.00012274,2]
[421888490,1778293843000,-1247.39085366,0.00012129,2]
[421888491,1778293843000,-150.0,0.0001218,2]
[421888489,1778293843000,-196.0,0.00012124,2]
[421888488,1778293843000,-388.98,0.00012081,2]
[421888493,1778293843000,-200.0,0.00012236,2]
[421888492,1778293843000,-196.0,0.00012236,2]
[421888486,1778293843000,-500.0,0.00012,2]
[421888485,1778293843000,-2093.13456471,0.00012,2]
[421888487,1778293843000,-196.0,0.00012011,2]
[421888484,1778293843000,-519.45202042,0.00012,2]
[421888481,1778293843000,-4069.77402337,0.00012,2]
[421888494,1778293843000,-395.4,0.00012264,2]
[421888506,1778293843000,-503.67419419,0.00012349,2]
[421888501,1778293843000,-196.0,0.00012348,2]
[421888512,1778293843000,-4264.77895641,0.00012732,2]
[421888510,1778293843000,-261.98000005,0.00012732,2]
[421888533,1778293843000,-1680.0,0.00013088,2]
[421888535,1778293843000,-1000.0,0.00013286,2]
[421888536,1778293843000,-1000.0,0.00013286,2]
[421888538,1778293843000,-1000.0,0.00013286,2]
[421888537,1778293843000,-1000.0,0.00013286,2]
[421888539,1778293843000,-1000.0,0.00013286,2]
[421888532,1778293843000,-231.31046378,0.00013021,2]
[421888530,1778293843000,-500.0,0.00013021,2]
[421888531,1778293843000,-500.0,0.00013021,2]
[421888529,1778293843000,-500.0,0.00013021,2]
[421888527,1778293843000,-500.0,0.00013021,2]
[421888528,1778293843000,-500.0,0.00013021,2]
[421888534,1778293843000,-1622.44,0.00013089,2]
[421888526,1778293843000,-25223.3085809,0.00013,5]
[421888525,1778293843000,-224.11,0.00012986,2]
[421888511,1778293843000,-918.74,0.00012732,2]
[421888513,1778293843000,-150.72,0.00012732,2]
[421888517,1778293843000,-874.04603599,0.00012855,2]
[421888516,1778293843000,-272.46,0.00012814,2]
[421888514,1778293843000,-899.60104359,0.0001277,2]
[421888519,1778293843000,-187.4529683,0.00012855,2]
[421888523,1778293843000,-250.0,0.00012936,2]
[421888524,1778293843000,-255.0,0.00012982,2]
[421888518,1778293843000,-769.89099571,0.00012855,2]
[421888515,1778293843000,-722.83895641,0.0001277,2]
[421888578,1778293844000,-151.0,0.0001345,2]
[421888579,1778293844000,-151.0,0.0001345,2]
[421888588,1778293844000,-500.0,0.00013698,2]
[421888582,1778293844000,-151.0,0.0001345,2]
[421888581,1778293844000,-151.0,0.0001345,2]
[421888580,1778293844000,-151.0,0.0001345,2]
[421888583,1778293844000,-2080.17592889,0.0001345,2]
[421888584,1778293844000,-150.00000001,0.00013488,2]
[421888587,1778293844000,-150.0,0.00013595,2]
[421888586,1778293844000,-150.0,0.00013488,2]
[421888592,1778293844000,-500.0,0.00013698,2]
[421888591,1778293844000,-478.0,0.00013698,2]
[421888585,1778293844000,-150.0,0.00013488,2]
[421888590,1778293844000,-500.0,0.00013698,2]
[421888595,1778293844000,-505.64306764,0.00013698,2]
[421888594,1778293844000,-500.0,0.00013698,2]
[421888596,1778293844000,-357.88629325,0.00013698,2]
[421888593,1778293844000,-518.28847872,0.00013698,2]
[421888597,1778293844000,-500.0,0.00013698,2]
[421888574,1778293844000,-151.0,0.0001345,2]
[421888599,1778293844000,-500.0,0.00013698,2]
[421888589,1778293844000,-500.0,0.00013698,2]
[421888576,1778293844000,-151.0,0.0001345,2]
[421888555,1778293844000,-151.0,0.0001345,2]
[421888572,1778293844000,-151.0,0.0001345,2]
[421888602,1778293844000,-500.0,0.00013698,2]
[421888541,1778293844000,-1000.0,0.00013286,2]
[421888543,1778293844000,-1000.0,0.00013286,2]
[421888545,1778293844000,-738.51166736,0.00013286,2]
[421888546,1778293844000,-500.0,0.00013288,2]
[421888547,1778293844000,-1622.44,0.00013408,2]
[421888544,1778293844000,-1000.0,0.00013286,2]
[421888548,1778293844000,-151.0,0.0001345,2]
[421888553,1778293844000,-151.0,0.0001345,2]
[421888549,1778293844000,-151.0,0.0001345,2]
[421888577,1778293844000,-151.0,0.0001345,2]
[421888559,1778293844000,-177.03097543,0.0001345,2]
[421888557,1778293844000,-151.0,0.0001345,2]
[421888561,1778293844000,-151.0,0.0001345,2]
[421888565,1778293844000,-151.0,0.0001345,2]
[421888563,1778293844000,-151.0,0.0001345,2]
[421888568,1778293844000,-151.0,0.0001345,2]
[421888567,1778293844000,-151.0,0.0001345,2]
[421888570,1778293844000,-522.52671934,0.0001345,2]
[421888573,1778293844000,-151.0,0.0001345,2]
[421888571,1778293844000,-151.0,0.0001345,2]
[421888575,1778293844000,-151.0,0.0001345,2]
[421888551,1778293844000,-151.0,0.0001345,2]
[421888598,1778293844000,-514.01493459,0.00013698,2]
[421888604,1778293844000,-524.65378599,0.00013698,2]
[421888601,1778293844000,-500.0,0.00013698,2]